[Event "Titled Tuesday Blitz January 17 Early 2023"]
[White "Rian, Kapriaga"]
[Black "Perrine, Dalton"]
[WhiteFideId "7103263"]
[BlackFideId "2048434"]
[WhiteElo "2089"]
[BlackElo "2228"]
[Result "1/2-1/2"]
[Round "03"]
[TimeControl "180+2"]
[Date "2023.01.17"]
[WhiteClock "0:00:04"]
[BlackClock "0:00:04"]

1. d4 {[%clk 0:02:59]}  Nf6 {[%clk 0:02:57]} 2. Nf3 {[%clk 0:02:58]}  c5 {[%clk 0:02:55]} 3. d5 {[%clk 0:02:57]}  b5 {[%clk 0:02:55]} 4. e4 {[%clk 0:02:54]}  Nxe4 {[%clk 0:02:55]} 5. Bd3 {[%clk 0:02:37]}  Qa5+ {[%clk 0:02:54]} 6. c3 {[%clk 0:02:32]}  Nf6 {[%clk 0:02:53]} 7. O-O {[%clk 0:02:24]}  Bb7 {[%clk 0:02:52]} 8. c4 {[%clk 0:02:10]}  bxc4 {[%clk 0:02:24]} 9. Bxc4 {[%clk 0:02:09]}  Ba6 {[%clk 0:02:09]} 10. Bxa6 {[%clk 0:01:56]}  Nxa6 {[%clk 0:02:09]} 11. Nc3 {[%clk 0:01:55]}  e6 {[%clk 0:02:03]} 12. Bg5 {[%clk 0:01:52]}  Be7 {[%clk 0:02:00]} 13. Ne5 {[%clk 0:01:31]}  Qc7 {[%clk 0:01:43]} 14. Nc4 {[%clk 0:01:11]}  Qb7 {[%clk 0:01:27]} 15. Bxf6 {[%clk 0:00:38]}  gxf6 {[%clk 0:01:27]} 16. dxe6 {[%clk 0:00:30]}  dxe6 {[%clk 0:01:27]} 17. Qa4+ {[%clk 0:00:25]}  Kf8 {[%clk 0:01:24]} 18. Rad1 {[%clk 0:00:20]}  Rg8 {[%clk 0:01:14]} 19. g3 {[%clk 0:00:20]}  Nb4 {[%clk 0:01:00]} 20. Rd7 {[%clk 0:00:19]}  Qc6 {[%clk 0:00:49]} 21. Qxc6 {[%clk 0:00:17]}  Nxc6 {[%clk 0:00:50]} 22. Rc7 {[%clk 0:00:17]}  Nd4 {[%clk 0:00:48]} 23. Rd1 {[%clk 0:00:17]}  a6 {[%clk 0:00:32]} 24. Ne4 {[%clk 0:00:17]}  Nb5 {[%clk 0:00:12]} 25. Rcd7 {[%clk 0:00:15]}  Ke8 {[%clk 0:00:08]} 26. a4 {[%clk 0:00:15]}  Nd4 {[%clk 0:00:05]} 27. Rc7 {[%clk 0:00:16]}  f5 {[%clk 0:00:05]} 28. Nxc5 {[%clk 0:00:15]}  Bxc5 {[%clk 0:00:05]} 29. Rxc5 {[%clk 0:00:16]}  Nf3+ {[%clk 0:00:05]} 30. Kg2 {[%clk 0:00:15]}  Ng5 {[%clk 0:00:06]} 31. Rc7 {[%clk 0:00:14]}  Rd8 {[%clk 0:00:05]} 32. Nd6+ {[%clk 0:00:13]}  Kf8 {[%clk 0:00:06]} 33. h4 {[%clk 0:00:11]}  Rxd6 {[%clk 0:00:04]} 34. Rxd6 {[%clk 0:00:10]}  Ne4 {[%clk 0:00:05]} 35. Rdd7 {[%clk 0:00:10]}  Kg7 {[%clk 0:00:01]} 36. b4 {[%clk 0:00:10]}  Kg6 {[%clk 0:00:02]} 37. Rxf7 {[%clk 0:00:09]}  Rb8 {[%clk 0:00:02]} 38. Rg7+ {[%clk 0:00:09]}  Kf6 {[%clk 0:00:03]} 39. Rgf7+ {[%clk 0:00:09]}  Ke5 {[%clk 0:00:03]} 40. Rfd7 {[%clk 0:00:07]}  Rxb4 {[%clk 0:00:02]} 41. f4+ {[%clk 0:00:07]}  Kf6 {[%clk 0:00:02]} 42. Rf7+ {[%clk 0:00:08]}  Kg6 {[%clk 0:00:02]} 43. Rg7+ {[%clk 0:00:08]}  Kh5 {[%clk 0:00:03]} 44. Rxh7+ {[%clk 0:00:06]}  Kg6 {[%clk 0:00:04]} 45. Rhg7+ {[%clk 0:00:05]}  Kh6 {[%clk 0:00:03]} 46. Rh7+ {[%clk 0:00:04]}  Kg6 {[%clk 0:00:03]} 47. Rhg7+ {[%clk 0:00:04]}  Kh5 {[%clk 0:00:03]} 48. Rh7+ {[%clk 0:00:04]}  Kg6 {[%clk 0:00:04]} 1/2-1/2


[Site "https://www.chess.com"]

[Event "Titled Tuesday Blitz January 17 Early 2023"]
[White "Ruiz Aguilar, Pablo Alexander"]
[Black "Lymar, Vladislav"]
[WhiteFideId "4401352"]
[BlackFideId "14162180"]
[WhiteElo "2161"]
[BlackElo "2119"]
[Result "0-1"]
[Round "03"]
[TimeControl "180+2"]
[Date "2023.01.17"]
[WhiteClock "0:01:36"]
[BlackClock "0:01:54"]

1. e4 {[%clk 0:03:00]}  c5 {[%clk 0:02:57]} 2. Nf3 {[%clk 0:02:59]}  Nc6 {[%clk 0:02:57]} 3. Nc3 {[%clk 0:02:58]}  Nf6 {[%clk 0:02:56]} 4. d4 {[%clk 0:02:56]}  cxd4 {[%clk 0:02:55]} 5. Nxd4 {[%clk 0:02:56]}  e5 {[%clk 0:02:55]} 6. Ndb5 {[%clk 0:02:57]}  Bc5 {[%clk 0:02:55]} 7. Nd6+ {[%clk 0:02:52]}  Ke7 {[%clk 0:02:55]} 8. Nf5+ {[%clk 0:02:52]}  Kf8 {[%clk 0:02:55]} 9. Bd3 {[%clk 0:02:48]}  d5 {[%clk 0:02:39]} 10. exd5 {[%clk 0:02:48]}  Nxd5 {[%clk 0:02:36]} 11. Nxd5 {[%clk 0:02:44]}  Qxd5 {[%clk 0:02:25]} 12. Ne3 {[%clk 0:02:24]}  Bxe3 {[%clk 0:02:21]} 13. Bxe3 {[%clk 0:02:24]}  Qxg2 {[%clk 0:02:21]} 14. Rf1 {[%clk 0:02:17]}  Bg4 {[%clk 0:02:19]} 15. Be2 {[%clk 0:02:10]}  Rd8 {[%clk 0:02:16]} 16. Bd2 {[%clk 0:01:49]}  Bh3 {[%clk 0:01:56]} 17. Bf3 {[%clk 0:01:36]}  Qxf1# {[%clk 0:01:54]} 0-1


[Site "https://www.chess.com"]

[Event "Titled Tuesday Blitz January 17 Early 2023"]
[White "Sargissyan, Sargis"]
[Black "Taboas Rodriguez, Daniel"]
[WhiteFideId "13303210"]
[BlackFideId "2208466"]
[WhiteElo "2234"]
[BlackElo "2371"]
[Result "0-1"]
[Round "03"]
[TimeControl "180+2"]
[Date "2023.01.17"]
[WhiteClock "0:00:19"]
[BlackClock "0:00:22"]

1. e4 {[%clk 0:02:57]}  e5 {[%clk 0:03:00]} 2. Nf3 {[%clk 0:02:57]}  Nc6 {[%clk 0:03:00]} 3. Bb5 {[%clk 0:02:58]}  Nf6 {[%clk 0:03:00]} 4. d3 {[%clk 0:02:58]}  d6 {[%clk 0:03:00]} 5. c3 {[%clk 0:02:55]}  Bd7 {[%clk 0:03:00]} 6. Nbd2 {[%clk 0:02:55]}  g6 {[%clk 0:02:59]} 7. Nf1 {[%clk 0:02:55]}  Bg7 {[%clk 0:02:59]} 8. Ng3 {[%clk 0:02:55]}  O-O {[%clk 0:03:00]} 9. O-O {[%clk 0:02:56]}  h6 {[%clk 0:02:44]} 10. Re1 {[%clk 0:02:27]}  Nh7 {[%clk 0:02:42]} 11. d4 {[%clk 0:02:05]}  Nxd4 {[%clk 0:02:42]} 12. Nxd4 {[%clk 0:02:05]}  exd4 {[%clk 0:02:42]} 13. Bxd7 {[%clk 0:02:05]}  dxc3 {[%clk 0:02:41]} 14. Ba4 {[%clk 0:01:49]}  cxb2 {[%clk 0:02:41]} 15. Bxb2 {[%clk 0:01:47]}  Bxb2 {[%clk 0:02:42]} 16. Rb1 {[%clk 0:01:48]}  Be5 {[%clk 0:02:39]} 17. Rxb7 {[%clk 0:01:47]}  a5 {[%clk 0:02:20]} 18. Qc2 {[%clk 0:01:45]}  c5 {[%clk 0:02:17]} 19. Bb3 {[%clk 0:01:35]}  Rb8 {[%clk 0:02:16]} 20. Ra7 {[%clk 0:01:34]}  Qb6 {[%clk 0:02:12]} 21. Re7 {[%clk 0:01:25]}  Rb7 {[%clk 0:01:56]} 22. Rxb7 {[%clk 0:01:17]}  Qxb7 {[%clk 0:01:57]} 23. Qc1 {[%clk 0:01:18]}  Qb4 {[%clk 0:01:49]} 24. f4 {[%clk 0:01:17]}  Bxf4 {[%clk 0:01:45]} 25. Qd1 {[%clk 0:01:09]}  Qd4+ {[%clk 0:01:40]} 26. Qxd4 {[%clk 0:01:08]}  cxd4 {[%clk 0:01:41]} 27. Rd1 {[%clk 0:01:08]}  Nf6 {[%clk 0:01:36]} 28. Ne2 {[%clk 0:00:58]}  Be3+ {[%clk 0:01:34]} 29. Kf1 {[%clk 0:00:59]}  Nxe4 {[%clk 0:01:27]} 30. Nxd4 {[%clk 0:01:00]}  Nd2+ {[%clk 0:01:20]} 31. Ke2 {[%clk 0:01:00]}  Bxd4 {[%clk 0:01:12]} 32. Rxd2 {[%clk 0:00:59]}  Bc5 {[%clk 0:01:09]} 33. Kf3 {[%clk 0:00:58]}  Kg7 {[%clk 0:01:10]} 34. Re2 {[%clk 0:00:58]}  Kf6 {[%clk 0:01:09]} 35. Bd5 {[%clk 0:00:58]}  Rb8 {[%clk 0:01:05]} 36. h3 {[%clk 0:00:57]}  Rb4 {[%clk 0:01:04]} 37. Re8 {[%clk 0:00:56]}  Rd4 {[%clk 0:01:04]} 38. Bb3 {[%clk 0:00:54]}  Rd3+ {[%clk 0:00:56]} 39. Ke2 {[%clk 0:00:54]}  Rg3 {[%clk 0:00:56]} 40. Kf1 {[%clk 0:00:53]}  Re3 {[%clk 0:00:53]} 41. Rf8 {[%clk 0:00:51]}  Re7 {[%clk 0:00:53]} 42. Bc4 {[%clk 0:00:49]}  a4 {[%clk 0:00:52]} 43. g4 {[%clk 0:00:45]}  a3 {[%clk 0:00:51]} 44. Bb3 {[%clk 0:00:44]}  Rd7 {[%clk 0:00:48]} 45. Bd5 {[%clk 0:00:43]}  Re7 {[%clk 0:00:45]} 46. Kg2 {[%clk 0:00:43]}  Kg7 {[%clk 0:00:43]} 47. Rb8 {[%clk 0:00:41]}  Re5 {[%clk 0:00:43]} 48. Bb3 {[%clk 0:00:40]}  Re2+ {[%clk 0:00:39]} 49. Kg3 {[%clk 0:00:40]}  Re3+ {[%clk 0:00:39]} 50. Kg2 {[%clk 0:00:39]}  f5 {[%clk 0:00:25]} 51. Rb7+ {[%clk 0:00:38]}  Kf6 {[%clk 0:00:25]} 52. gxf5 {[%clk 0:00:35]}  Kxf5 {[%clk 0:00:26]} 53. Rf7+ {[%clk 0:00:33]}  Kg5 {[%clk 0:00:26]} 54. Rg7 {[%clk 0:00:32]}  Rxb3 {[%clk 0:00:22]} 55. axb3 {[%clk 0:00:32]}  a2 {[%clk 0:00:22]} 56. h4+ {[%clk 0:00:19]}  Kxh4 {[%clk 0:00:22]} 0-1


[Site "https://www.chess.com"]

[Event "Titled Tuesday Blitz January 17 Early 2023"]
[White "Dilanyan, Grigor"]
[Black "Ovezdurdyyeva, Jemal"]
[WhiteFideId "13303570"]
[BlackFideId "14001888"]
[WhiteElo "2174"]
[BlackElo "2078"]
[Result "1-0"]
[Round "03"]
[TimeControl "180+2"]
[Date "2023.01.17"]
[WhiteClock "0:00:38"]
[BlackClock "0:00:17"]

1. e4 {[%clk 0:03:00]}  d6 {[%clk 0:02:59]} 2. d4 {[%clk 0:02:59]}  Nf6 {[%clk 0:02:58]} 3. Nc3 {[%clk 0:02:59]}  g6 {[%clk 0:02:57]} 4. Be3 {[%clk 0:02:59]}  c6 {[%clk 0:02:58]} 5. Qd2 {[%clk 0:02:56]}  h5 {[%clk 0:02:57]} 6. f3 {[%clk 0:02:47]}  Bg7 {[%clk 0:02:54]} 7. O-O-O {[%clk 0:02:46]}  Nbd7 {[%clk 0:02:52]} 8. e5 {[%clk 0:02:41]}  dxe5 {[%clk 0:02:14]} 9. dxe5 {[%clk 0:02:42]}  Nd5 {[%clk 0:02:15]} 10. Nxd5 {[%clk 0:02:39]}  cxd5 {[%clk 0:02:14]} 11. Qxd5 {[%clk 0:02:35]}  Bxe5 {[%clk 0:02:14]} 12. Bb5 {[%clk 0:02:24]}  Bd6 {[%clk 0:02:00]} 13. Ne2 {[%clk 0:01:29]}  a6 {[%clk 0:01:52]} 14. Bc4 {[%clk 0:01:27]}  Rh7 {[%clk 0:01:46]} 15. Bf4 {[%clk 0:01:23]}  Nb6 {[%clk 0:01:29]} 16. Qd4 {[%clk 0:01:20]}  Bxf4+ {[%clk 0:01:21]} 17. Qxf4 {[%clk 0:01:20]}  Bd7 {[%clk 0:01:20]} 18. Bb3 {[%clk 0:01:17]}  Qc8 {[%clk 0:01:01]} 19. Rhe1 {[%clk 0:01:15]}  Qc5 {[%clk 0:01:00]} 20. Nc3 {[%clk 0:01:12]}  O-O-O {[%clk 0:01:00]} 21. Re5 {[%clk 0:01:06]}  Qc7 {[%clk 0:00:56]} 22. Qe3 {[%clk 0:01:06]}  e6 {[%clk 0:00:49]} 23. Rc5 {[%clk 0:00:55]}  Bc6 {[%clk 0:00:49]} 24. Rxd8+ {[%clk 0:00:55]}  Qxd8 {[%clk 0:00:43]} 25. a4 {[%clk 0:00:55]}  Nd7 {[%clk 0:00:37]} 26. Rc4 {[%clk 0:00:54]}  Kb8 {[%clk 0:00:36]} 27. Ne4 {[%clk 0:00:39]}  Bxe4 {[%clk 0:00:19]} 28. Rxe4 {[%clk 0:00:38]}  Rh8 {[%clk 0:00:18]} 29. Rd4 {[%clk 0:00:38]}  Qc7 {[%clk 0:00:17]} 30. Rxd7 {[%clk 0:00:38]}  Qxd7 {[%clk 0:00:17]} 31. Qe5+ {[%clk 0:00:38]}  Ka7 {[%clk 0:00:17]} 32. Qxh8 {[%clk 0:00:38]}  Qc7 {[%clk 0:00:17]} 33. Qd4+ {[%clk 0:00:38]}  Ka8 {[%clk 0:00:17]} 34. f4 {[%clk 0:00:38]} 1-0


[Site "https://www.chess.com"]

[Event "Titled Tuesday Blitz January 17 Early 2023"]
[White "Golubev, Mikhail"]
[Black "Hoffmann, Asa"]
[WhiteFideId "14100983"]
[BlackFideId "2001470"]
[WhiteElo "2461"]
[BlackElo "2185"]
[Result "1-0"]
[Round "03"]
[TimeControl "180+2"]
[Date "2023.01.17"]
[WhiteClock "0:00:03"]
[BlackClock "0:01:11"]

1. e4 {[%clk 0:02:52]}  d6 {[%clk 0:02:59]} 2. d4 {[%clk 0:02:51]}  Nf6 {[%clk 0:02:58]} 3. f3 {[%clk 0:02:49]}  Nbd7 {[%clk 0:02:55]} 4. c4 {[%clk 0:02:48]}  e5 {[%clk 0:02:55]} 5. Be3 {[%clk 0:02:41]}  Be7 {[%clk 0:02:54]} 6. Nc3 {[%clk 0:02:41]}  c6 {[%clk 0:02:54]} 7. Qd2 {[%clk 0:02:37]}  a6 {[%clk 0:02:54]} 8. Bd3 {[%clk 0:02:13]}  b5 {[%clk 0:02:50]} 9. b3 {[%clk 0:01:56]}  O-O {[%clk 0:02:49]} 10. Nge2 {[%clk 0:01:54]}  Bb7 {[%clk 0:02:48]} 11. O-O {[%clk 0:01:52]}  Qc7 {[%clk 0:02:47]} 12. Rac1 {[%clk 0:01:48]}  b4 {[%clk 0:02:36]} 13. Na4 {[%clk 0:01:43]}  c5 {[%clk 0:02:31]} 14. d5 {[%clk 0:01:34]}  Ne8 {[%clk 0:02:28]} 15. f4 {[%clk 0:01:31]}  Bf6 {[%clk 0:02:26]} 16. f5 {[%clk 0:01:30]}  Qd8 {[%clk 0:02:25]} 17. g4 {[%clk 0:01:27]}  h6 {[%clk 0:02:24]} 18. Ng3 {[%clk 0:01:27]}  Bg5 {[%clk 0:02:24]} 19. Rce1 {[%clk 0:01:15]}  Bxe3+ {[%clk 0:02:22]} 20. Rxe3 {[%clk 0:01:15]}  f6 {[%clk 0:02:20]} 21. h4 {[%clk 0:01:12]}  Kf7 {[%clk 0:02:19]} 22. Nh5 {[%clk 0:01:09]}  Ke7 {[%clk 0:02:18]} 23. Rg3 {[%clk 0:00:58]}  Rh8 {[%clk 0:02:16]} 24. Kf2 {[%clk 0:00:56]}  Nf8 {[%clk 0:02:12]} 25. Rh1 {[%clk 0:00:54]}  Bc8 {[%clk 0:02:07]} 26. g5 {[%clk 0:00:53]}  Bd7 {[%clk 0:02:01]} 27. gxf6+ {[%clk 0:00:46]}  gxf6 {[%clk 0:02:00]} 28. Rhg1 {[%clk 0:00:40]}  Bxa4 {[%clk 0:01:59]} 29. bxa4 {[%clk 0:00:27]}  Kd7 {[%clk 0:01:58]} 30. Ng7 {[%clk 0:00:20]}  Kc8 {[%clk 0:01:49]} 31. Ne6 {[%clk 0:00:19]}  Qd7 {[%clk 0:01:46]} 32. Rg7 {[%clk 0:00:18]}  Qxa4 {[%clk 0:01:42]} 33. Re7 {[%clk 0:00:15]}  Nxe6 {[%clk 0:01:37]} 34. fxe6 {[%clk 0:00:15]}  Rb8 {[%clk 0:01:32]} 35. Be2 {[%clk 0:00:12]}  b3 {[%clk 0:01:30]} 36. axb3 {[%clk 0:00:11]}  Qxb3 {[%clk 0:01:30]} 37. Rg3 {[%clk 0:00:10]}  Qb2 {[%clk 0:01:29]} 38. Qxb2 {[%clk 0:00:10]}  Rxb2 {[%clk 0:01:28]} 39. Ke1 {[%clk 0:00:08]}  Nc7 {[%clk 0:01:28]} 40. Bg4 {[%clk 0:00:07]}  Kb8 {[%clk 0:01:27]} 41. Rf7 {[%clk 0:00:07]}  a5 {[%clk 0:01:25]} 42. e7 {[%clk 0:00:06]}  Re8 {[%clk 0:01:25]} 43. Bd7 {[%clk 0:00:05]}  Rxe7 {[%clk 0:01:13]} 44. Rxe7 {[%clk 0:00:05]}  a4 {[%clk 0:01:13]} 45. Bxa4 {[%clk 0:00:04]}  Rb4 {[%clk 0:01:12]} 46. Bc6 {[%clk 0:00:03]}  Ka7 {[%clk 0:01:12]} 47. Rxc7+ {[%clk 0:00:02]}  Kb6 {[%clk 0:01:12]} 48. Rb7+ {[%clk 0:00:02]}  Ka6 {[%clk 0:01:11]} 49. Ra3+ {[%clk 0:00:02]}  Ra4 {[%clk 0:01:11]} 50. Rxa4# {[%clk 0:00:03]} 1-0


[Site "https://www.chess.com"]

[Event "Titled Tuesday Blitz January 17 Early 2023"]
[White "Fecker, Noah"]
[Black "Petrova, Irina"]
[WhiteFideId "1334263"]
[BlackFideId "14124122"]
[WhiteElo "2388"]
[BlackElo "2108"]
[Result "0-1"]
[Round "03"]
[TimeControl "180+2"]
[Date "2023.01.17"]
[WhiteClock "0:00:16"]
[BlackClock "0:00:30"]

1. c4 {[%clk 0:02:52]}  d6 {[%clk 0:03:00]} 2. Nc3 {[%clk 0:02:47]}  g6 {[%clk 0:03:01]} 3. g3 {[%clk 0:02:47]}  Bg7 {[%clk 0:03:01]} 4. Bg2 {[%clk 0:02:48]}  Nc6 {[%clk 0:02:58]} 5. d3 {[%clk 0:02:47]}  e5 {[%clk 0:02:58]} 6. Bd2 {[%clk 0:02:45]}  f5 {[%clk 0:02:58]} 7. h4 {[%clk 0:02:44]}  Nf6 {[%clk 0:02:57]} 8. Qc1 {[%clk 0:02:44]}  O-O {[%clk 0:02:45]} 9. Bh6 {[%clk 0:02:44]}  Be6 {[%clk 0:02:38]} 10. Nh3 {[%clk 0:02:36]}  Ng4 {[%clk 0:02:23]} 11. Bxg7 {[%clk 0:02:35]}  Kxg7 {[%clk 0:02:24]} 12. h5 {[%clk 0:02:30]}  f4 {[%clk 0:02:13]} 13. gxf4 {[%clk 0:02:21]}  exf4 {[%clk 0:02:09]} 14. hxg6 {[%clk 0:02:14]}  hxg6 {[%clk 0:02:02]} 15. Ne4 {[%clk 0:02:05]}  Nd4 {[%clk 0:01:40]} 16. Qc3 {[%clk 0:01:49]}  c5 {[%clk 0:01:35]} 17. e3 {[%clk 0:01:42]}  fxe3 {[%clk 0:01:34]} 18. fxe3 {[%clk 0:01:41]}  Nxe3 {[%clk 0:01:33]} 19. Nhg5 {[%clk 0:01:04]}  Nxg2+ {[%clk 0:01:27]} 20. Kd2 {[%clk 0:01:03]}  Rf2+ {[%clk 0:01:20]} 21. Kd1 {[%clk 0:00:49]}  Ne3+ {[%clk 0:01:16]} 22. Kc1 {[%clk 0:00:42]}  Rc2+ {[%clk 0:01:15]} 23. Qxc2 {[%clk 0:00:42]}  Nexc2 {[%clk 0:01:16]} 24. Rh7+ {[%clk 0:00:40]}  Kg8 {[%clk 0:01:13]} 25. Rb1 {[%clk 0:00:28]}  Qf8 {[%clk 0:01:09]} 26. Kd2 {[%clk 0:00:23]}  Nf3+ {[%clk 0:00:46]} 27. Kxc2 {[%clk 0:00:19]}  Nxg5 {[%clk 0:00:45]} 28. Nxg5 {[%clk 0:00:20]}  Qf2+ {[%clk 0:00:45]} 29. Kb3 {[%clk 0:00:19]}  Qe3 {[%clk 0:00:39]} 30. Nxe6 {[%clk 0:00:19]}  Qxd3+ {[%clk 0:00:37]} 31. Ka4 {[%clk 0:00:18]}  Qxc4+ {[%clk 0:00:36]} 32. b4 {[%clk 0:00:19]}  Kxh7 {[%clk 0:00:30]} 33. Rh1+ {[%clk 0:00:17]}  Kg8 {[%clk 0:00:30]} 34. Nc7 {[%clk 0:00:16]}  Qxb4# {[%clk 0:00:30]} 0-1


[Site "https://www.chess.com"]

[Event "Titled Tuesday Blitz January 17 Early 2023"]
[White "Vasques, Antonio Pedro Freixial"]
[Black "Janaszak, Dawid"]
[WhiteFideId "1908332"]
[BlackFideId "1119206"]
[WhiteElo "2214"]
[BlackElo "2316"]
[Result "1/2-1/2"]
[Round "03"]
[TimeControl "180+2"]
[Date "2023.01.17"]
[WhiteClock "0:00:28"]
[BlackClock "0:00:13"]

1. e4 {[%clk 0:02:57]}  e5 {[%clk 0:02:55]} 2. Nf3 {[%clk 0:02:56]}  Nc6 {[%clk 0:02:54]} 3. Bc4 {[%clk 0:02:57]}  d6 {[%clk 0:02:53]} 4. O-O {[%clk 0:02:56]}  Be7 {[%clk 0:02:53]} 5. Re1 {[%clk 0:02:47]}  Nf6 {[%clk 0:02:52]} 6. c3 {[%clk 0:02:47]}  O-O {[%clk 0:02:51]} 7. d4 {[%clk 0:02:47]}  Bg4 {[%clk 0:02:52]} 8. d5 {[%clk 0:02:42]}  Nb8 {[%clk 0:02:52]} 9. Nbd2 {[%clk 0:02:42]}  c6 {[%clk 0:02:45]} 10. dxc6 {[%clk 0:02:38]}  bxc6 {[%clk 0:02:46]} 11. Bb3 {[%clk 0:02:32]}  Nbd7 {[%clk 0:02:45]} 12. Nf1 {[%clk 0:02:31]}  Nc5 {[%clk 0:02:43]} 13. Bc2 {[%clk 0:02:31]}  d5 {[%clk 0:02:39]} 14. exd5 {[%clk 0:02:28]}  e4 {[%clk 0:02:39]} 15. h3 {[%clk 0:02:22]}  Bh5 {[%clk 0:02:38]} 16. Ng3 {[%clk 0:01:50]}  exf3 {[%clk 0:02:33]} 17. Nxh5 {[%clk 0:01:49]}  Nxh5 {[%clk 0:02:31]} 18. Qxf3 {[%clk 0:01:50]}  Nf6 {[%clk 0:02:25]} 19. dxc6 {[%clk 0:01:20]}  Re8 {[%clk 0:02:24]} 20. Bf4 {[%clk 0:01:06]}  Ne6 {[%clk 0:02:24]} 21. Be5 {[%clk 0:00:45]}  Qb6 {[%clk 0:02:21]} 22. Bb3 {[%clk 0:00:23]}  Rac8 {[%clk 0:02:10]} 23. Bxe6 {[%clk 0:00:14]}  fxe6 {[%clk 0:02:11]} 24. b4 {[%clk 0:00:15]}  Qxc6 {[%clk 0:02:09]} 25. Qg3 {[%clk 0:00:14]}  Rf8 {[%clk 0:01:53]} 26. Rad1 {[%clk 0:00:14]}  Rf7 {[%clk 0:01:52]} 27. Bd4 {[%clk 0:00:14]}  Ne4 {[%clk 0:01:50]} 28. Qe5 {[%clk 0:00:13]}  Nxc3 {[%clk 0:01:30]} 29. Rc1 {[%clk 0:00:13]}  Bxb4 {[%clk 0:01:23]} 30. a3 {[%clk 0:00:14]}  Ne2+ {[%clk 0:00:23]} 31. Qxe2 {[%clk 0:00:14]}  Qxc1 {[%clk 0:00:24]} 32. Rxc1 {[%clk 0:00:15]}  Rxc1+ {[%clk 0:00:24]} 33. Kh2 {[%clk 0:00:15]}  Bd6+ {[%clk 0:00:25]} 34. g3 {[%clk 0:00:16]}  a6 {[%clk 0:00:19]} 35. Qxe6 {[%clk 0:00:16]}  Bxa3 {[%clk 0:00:17]} 36. Qe8+ {[%clk 0:00:16]}  Bf8 {[%clk 0:00:17]} 37. Qe6 {[%clk 0:00:16]}  Rc7 {[%clk 0:00:13]} 38. Qxa6 {[%clk 0:00:16]}  Rcd7 {[%clk 0:00:13]} 39. Be3 {[%clk 0:00:16]}  h6 {[%clk 0:00:12]} 40. Qe6 {[%clk 0:00:17]}  Re7 {[%clk 0:00:13]} 41. Qg4 {[%clk 0:00:17]}  Kh8 {[%clk 0:00:12]} 42. Kg2 {[%clk 0:00:17]}  Re8 {[%clk 0:00:10]} 43. Qg6 {[%clk 0:00:17]}  Ree7 {[%clk 0:00:08]} 44. Bc5 {[%clk 0:00:17]}  Rd7 {[%clk 0:00:07]} 45. Bxf8 {[%clk 0:00:17]}  Rxf8 {[%clk 0:00:08]} 46. Qe4 {[%clk 0:00:17]}  Rdf7 {[%clk 0:00:09]} 47. Qe3 {[%clk 0:00:18]}  Rf6 {[%clk 0:00:09]} 48. h4 {[%clk 0:00:18]}  Rf5 {[%clk 0:00:09]} 49. f4 {[%clk 0:00:19]}  R5f7 {[%clk 0:00:09]} 50. Qe6 {[%clk 0:00:19]}  Rf6 {[%clk 0:00:08]} 51. Qe5 {[%clk 0:00:19]}  Rf5 {[%clk 0:00:09]} 52. Qe4 {[%clk 0:00:19]}  R5f7 {[%clk 0:00:08]} 53. Kh3 {[%clk 0:00:20]}  Rd8 {[%clk 0:00:08]} 54. Kg4 {[%clk 0:00:20]}  Rfd7 {[%clk 0:00:09]} 55. Qe5 {[%clk 0:00:21]}  Rd5 {[%clk 0:00:09]} 56. Qe4 {[%clk 0:00:21]}  Rd4 {[%clk 0:00:09]} 57. Qe7 {[%clk 0:00:21]}  R4d7 {[%clk 0:00:09]} 58. Qe6 {[%clk 0:00:21]}  Rd6 {[%clk 0:00:10]} 59. Qe5 {[%clk 0:00:21]}  Rg6+ {[%clk 0:00:10]} 60. Kh3 {[%clk 0:00:21]}  Rf6 {[%clk 0:00:11]} 61. f5 {[%clk 0:00:21]}  Rdf8 {[%clk 0:00:11]} 62. Kg4 {[%clk 0:00:22]}  h5+ {[%clk 0:00:12]} 63. Kg5 {[%clk 0:00:22]}  Rh6 {[%clk 0:00:11]} 64. Qe7 {[%clk 0:00:21]}  Rhf6 {[%clk 0:00:10]} 65. Qd7 {[%clk 0:00:22]}  Kh7 {[%clk 0:00:09]} 66. Kxh5 {[%clk 0:00:22]}  Rxf5+ {[%clk 0:00:09]} 67. Kg4 {[%clk 0:00:23]}  R5f6 {[%clk 0:00:10]} 68. Qd3+ {[%clk 0:00:22]}  Kh8 {[%clk 0:00:10]} 69. h5 {[%clk 0:00:23]}  Rh6 {[%clk 0:00:10]} 70. Kh4 {[%clk 0:00:23]}  Rhf6 {[%clk 0:00:10]} 71. g4 {[%clk 0:00:24]}  Rf3 {[%clk 0:00:10]} 72. Qd5 {[%clk 0:00:24]}  Rf1 {[%clk 0:00:10]} 73. Kg5 {[%clk 0:00:24]}  R1f6 {[%clk 0:00:10]} 74. Qd7 {[%clk 0:00:25]}  R8f7 {[%clk 0:00:10]} 75. Qe8+ {[%clk 0:00:25]}  Rf8 {[%clk 0:00:11]} 76. Qe5 {[%clk 0:00:26]}  R8f7 {[%clk 0:00:11]} 77. h6 {[%clk 0:00:26]}  gxh6+ {[%clk 0:00:12]} 78. Kh5 {[%clk 0:00:26]}  Kg7 {[%clk 0:00:13]} 79. g5 {[%clk 0:00:26]}  hxg5 {[%clk 0:00:13]} 80. Kxg5 {[%clk 0:00:27]}  Kg8 {[%clk 0:00:12]} 81. Qe8+ {[%clk 0:00:27]}  Kg7 {[%clk 0:00:11]} 82. Qe5 {[%clk 0:00:27]}  Kh7 {[%clk 0:00:12]} 83. Qxf6 {[%clk 0:00:27]}  Rxf6 {[%clk 0:00:13]} 84. Kxf6 {[%clk 0:00:28]} 1/2-1/2


[Site "https://www.chess.com"]

[Event "Titled Tuesday Blitz January 17 Early 2023"]
[White "Hirneise, Jens"]
[Black "Garmash, Aliona"]
[WhiteFideId "24614734"]
[BlackFideId "34127620"]
[WhiteElo "2277"]
[BlackElo "2039"]
[Result "1-0"]
[Round "03"]
[TimeControl "180+2"]
[Date "2023.01.17"]
[WhiteClock "0:01:10"]
[BlackClock "0:00:01"]

1. Nf3 {[%clk 0:03:00]}  d5 {[%clk 0:02:59]} 2. d4 {[%clk 0:02:59]}  Nf6 {[%clk 0:02:58]} 3. e3 {[%clk 0:03:00]}  Bf5 {[%clk 0:02:55]} 4. Be2 {[%clk 0:03:00]}  e6 {[%clk 0:02:55]} 5. O-O {[%clk 0:02:57]}  c5 {[%clk 0:02:46]} 6. c3 {[%clk 0:02:58]}  Nc6 {[%clk 0:02:44]} 7. a3 {[%clk 0:02:57]}  Be7 {[%clk 0:02:37]} 8. b4 {[%clk 0:02:57]}  c4 {[%clk 0:02:27]} 9. Nbd2 {[%clk 0:02:56]}  h6 {[%clk 0:02:24]} 10. a4 {[%clk 0:02:52]}  O-O {[%clk 0:02:17]} 11. Nh4 {[%clk 0:02:42]}  Bh7 {[%clk 0:02:16]} 12. Nhf3 {[%clk 0:02:38]}  Ne4 {[%clk 0:01:41]} 13. Nxe4 {[%clk 0:02:36]}  Bxe4 {[%clk 0:01:37]} 14. Nd2 {[%clk 0:02:37]}  Bg6 {[%clk 0:01:34]} 15. e4 {[%clk 0:02:38]}  a6 {[%clk 0:01:24]} 16. Re1 {[%clk 0:02:19]}  b5 {[%clk 0:01:24]} 17. a5 {[%clk 0:02:11]}  dxe4 {[%clk 0:01:18]} 18. Bh5 {[%clk 0:02:07]}  Bxh5 {[%clk 0:01:05]} 19. Qxh5 {[%clk 0:02:08]}  Qd5 {[%clk 0:00:58]} 20. Qh3 {[%clk 0:02:01]}  f5 {[%clk 0:00:54]} 21. f3 {[%clk 0:02:01]}  exf3 {[%clk 0:00:52]} 22. Nxf3 {[%clk 0:02:02]}  Bf6 {[%clk 0:00:46]} 23. Bf4 {[%clk 0:02:00]}  Rae8 {[%clk 0:00:44]} 24. Be5 {[%clk 0:01:58]}  Bxe5 {[%clk 0:00:27]} 25. Nxe5 {[%clk 0:01:59]}  Nxe5 {[%clk 0:00:19]} 26. Rxe5 {[%clk 0:02:00]}  Qd7 {[%clk 0:00:18]} 27. Rae1 {[%clk 0:02:00]}  Rf6 {[%clk 0:00:16]} 28. d5 {[%clk 0:01:59]}  Re7 {[%clk 0:00:14]} 29. Qe3 {[%clk 0:01:55]}  Kf7 {[%clk 0:00:13]} 30. Kh1 {[%clk 0:01:48]}  Qd6 {[%clk 0:00:12]} 31. h4 {[%clk 0:01:41]}  f4 {[%clk 0:00:11]} 32. Qe4 {[%clk 0:01:40]}  Qd7 {[%clk 0:00:08]} 33. Qd4 {[%clk 0:01:34]}  Kf8 {[%clk 0:00:06]} 34. Qb6 {[%clk 0:01:28]}  f3 {[%clk 0:00:03]} 35. Qxa6 {[%clk 0:01:12]}  fxg2+ {[%clk 0:00:01]} 36. Kxg2 {[%clk 0:01:13]}  exd5 {[%clk 0:00:01]} 37. Qa8+ {[%clk 0:01:10]} 1-0


[Site "https://www.chess.com"]